bitfinex-derivatives/quotes_ETHF0:USTF0_20250804
["timestamp","ask_amount","ask_price","bid_price","bid_amount"]
[1754325622967,3.1515,3670.5,3670.4,0.99695]
[1754325623163,3.1515,3670.5,3670.4,3.66345]
[1754325623466,3.1515,3670.5,3670.4,2.29095]
[1754325624365,3.1515,3670.5,3670.4,3.66345]
[1754325625566,21.9868,3670.6,3670.5,3.1186]
[1754325625865,25.1383,3670.6,3670.5,3.1186]
[1754325626170,1.2481,3671.4,3671.3,0.54472]
[1754325626358,1.2481,3670.9,3670.8,0.54478]
[1754325626559,3.1515,3670.9,3670.8,0.54478]
[1754325627164,1.9034,3670.8,3670.1,3.2078]
[1754325627371,1.2481,3670.3,3670.2,0.54488]
[1754325627673,1.9585,3671.1,3670.9,0.54478]
[1754325628069,2.4558,3671.4,3671.3,0.54472]
[1754325628376,1.9585,3671.9,3671.8,0.54463]
[1754325628671,1.95631589,3671.9,3671.7,0.54465]
[1754325628870,3.1515,3671.8,3671.7,0.54465]
[1754325629266,2.6542,3671.8,3671.7,0.54465]
[1754325629766,18.777,3672.1,3671.1,3.2078]
[1754325629963,1.9585,3672.0,3671.3,1.3618]
[1754325630169,3.1515,3671.9,3671.8,0.54464]
[1754325631864,3.1515,3671.9,3671.7,0.54465]
[1754325632065,3.1515,3671.8,3671.5,3.75248]
[1754325632269,3.1515,3671.6,3671.5,3.2078]
[1754325632569,3.1515,3671.6,3671.5,3.75249]
[1754325632971,3.1515,3671.6,3671.4,0.5447]
[1754325633167,3.1515,3671.5,3671.4,0.5447]
[1754325634768,3.1515,3671.5,3671.0,4.56969]
[1754325634769,1.9735,3671.3,3671.0,3.2078]
[1754325634971,2.6542,3671.0,3670.9,0.54476]
[1754325635178,3.1515,3671.0,3670.9,0.54476]
[1754325635472,1.7454,3671.0,3670.8,0.54478]
[1754325635673,3.1515,3670.6,3670.5,3.75264]
[1754325635874,3.1515,3671.3,3671.2,0.54473]
[1754325636077,1.2481,3671.2,3671.0,0.54475]
[1754325636276,3.1515,3671.1,3671.0,0.54475]
[1754325636575,3.2078,3671.4,3671.2,0.54472]
[1754325636778,3.1515,3671.3,3671.2,0.54472]
[1754325637374,0.6957,3671.3,3671.2,0.54472]
[1754325637968,3.6901,3671.8,3671.7,0.54466]
[1754325638172,6.3593,3671.8,3671.7,0.54466]
[1754325638780,2.6542,3671.8,3671.7,0.54466]
[1754325639679,3.1515,3671.8,3671.7,0.54466]
[1754325640078,2.6542,3671.8,3671.7,0.54466]
[1754325640579,3.1922,3671.8,3671.7,0.54466]
[1754325642074,0.6957,3671.8,3671.7,0.54466]
[1754325642377,0.6549,3672.4,3672.3,1.1419]
[1754325642676,0.6549,3672.4,3672.3,1.68647]
[1754325642875,1.9038,3672.4,3672.3,1.68647]
[1754325643073,3.2078,3672.7,3671.8,2.72324]
[1754325643275,1.1929,3672.9,3672.3,0.6641]
[1754325643476,1.0,3673.0,3672.3,0.6641]
[1754325643679,1.2489,3672.7,3672.6,0.4778]
[1754325643878,1.7869,3672.7,3672.6,0.4778]
[1754325644380,3.1526,3672.7,3672.6,0.4778]
[1754325644873,3.1526,3672.7,3672.0,3.2078]
[1754325644874,1.9037,3672.7,3672.0,3.2078]
[1754325645182,1.79347,3672.3,3672.2,0.4778]
[1754325645373,3.69717,3672.3,3672.2,0.4778]
[1754325645578,0.54456,3672.4,3672.3,1.1419]
[1754325645881,1.91026,3672.4,3672.3,1.1419]
[1754325646073,1.91026,3672.4,3672.0,3.2078]
[1754325646074,3.6972,3672.1,3672.0,0.4778]
[1754325646274,1.79356,3671.7,3671.6,1.1419]
[1754325646476,3.69726,3671.7,3671.6,0.4778]
[1754325646977,1.3617,3671.6,3671.0,3.2078]
[1754325647177,1.31555,3671.1,3671.0,3.6856]
[1754325647483,0.54474,3671.2,3671.0,4.3497]
[1754325647675,0.54467,3671.6,3671.5,0.4778]
[1754325647880,0.54467,3671.6,3671.5,1.1419]
[1754325648182,3.69733,3671.3,3671.2,0.4778]
[1754325648483,2.68123,3671.3,3671.2,0.4778]
[1754325648669,2.1365,3671.3,3671.2,1.1419]
[1754325649184,0.5447,3671.5,3671.2,1.1419]
[1754325649478,0.5447,3671.5,3671.3,1.1419]
[1754325649479,0.54471,3671.4,3671.3,1.1419]
[1754325649680,3.15931,3671.4,3671.3,1.1419]
[1754325649881,2.6146,3671.4,3671.3,1.1419]
[1754325650078,1.31548,3671.6,3671.3,0.4778]
[1754325650277,1.3657,3671.5,3671.4,1.1419]
[1754325650677,3.1526,3671.5,3671.4,0.4778]
[1754325651578,0.54469,3671.6,3671.4,0.4778]
[1754325651776,1.9038,3671.5,3671.4,0.4778]
[1754325651981,3.1526,3671.5,3671.4,0.4778]
[1754325652282,3.1526,3671.1,3671.0,3.2078]
[1754325652477,0.7108,3671.1,3671.0,3.6856]
[1754325652678,0.6549,3671.5,3671.2,0.54472]
[1754325652880,1.3657,3671.5,3671.4,0.4778]
[1754325653278,1.79354,3671.9,3671.8,0.4778]
[1754325653486,3.2078,3672.1,3672.0,0.4778]
[1754325653487,1.2489,3672.1,3672.0,0.4778]
[1754325653784,1.46,3672.1,3672.0,1.1419]
[1754325653985,0.6549,3672.3,3672.1,0.54459]
[1754325654284,2.6146,3672.3,3672.2,1.1419]
[1754325654587,3.1526,3672.3,3672.2,0.4778]
[1754325655778,2.6146,3672.3,3672.2,0.4778]
[1754325655979,2.6146,3672.3,3672.2,1.1419]
[1754325656185,3.1526,3672.3,3672.2,0.4778]
[1754325656482,3.1526,3671.8,3671.6,0.54466]
[1754325656783,3.1526,3671.7,3671.6,0.4778]
[1754325657183,2.6146,3671.7,3671.6,1.1419]
[1754325657380,0.327,3671.7,3671.6,1.1419]
[1754325657687,2.6146,3671.9,3671.8,0.4778]
[1754325657886,3.1526,3671.9,3671.8,0.4778]
[1754325658089,2.6146,3671.9,3671.8,1.1419]
[1754325658389,2.1365,3671.9,3671.8,1.1419]
[1754325658682,3.1526,3671.9,3671.8,0.4778]
[1754325658885,1.2489,3671.9,3671.8,0.4778]
[1754325659183,3.1526,3671.9,3671.8,0.4778]
[1754325659380,3.1526,3671.9,3671.8,1.02243]
[1754325660281,1.3657,3672.2,3671.9,0.54463]
[1754325660587,3.1526,3672.1,3672.0,0.4778]
[1754325661286,2.6146,3672.2,3672.1,0.4778]
[1754325661486,3.1526,3672.2,3672.1,0.4778]
[1754325662189,3.1526,3671.9,3671.8,1.02243]
[1754325662990,2.6146,3671.9,3671.8,1.68653]
[1754325663388,2.4418,3672.2,3672.1,0.5446]
[1754325663584,3.1526,3672.2,3672.1,0.4778]
[1754325664401,2.6146,3672.2,3672.1,1.1419]
[1754325664886,3.1526,3672.7,3672.6,0.4778]
[1754325667291,1.2489,3672.5,3672.4,0.54455]
[1754325667491,2.6146,3672.5,3672.4,0.54455]
[1754325667692,3.1526,3672.5,3672.4,1.02235]
[1754325667989,2.6146,3672.5,3672.4,1.02235]
[1754325668191,3.1526,3672.8,3672.7,0.54451]
[1754325668394,3.1526,3672.8,3672.7,1.02231]
[1754325669094,3.1526,3672.7,3672.6,0.54452]
[1754325669297,3.1526,3672.7,3672.6,1.02232]
[1754325670191,2.6146,3672.7,3672.6,1.02232]
[1754325670391,2.1365,3672.7,3672.6,1.69752]
[1754325670691,2.5717,3672.7,3672.6,1.69752]
[1754325670891,3.0721,3672.7,3672.6,1.02232]
[1754325671093,3.0721,3672.7,3672.6,0.54452]
[1754325671494,3.0721,3672.7,3672.6,1.01532]
[1754325671797,2.5717,3672.7,3672.6,1.01532]
[1754325671994,1.0,3673.0,3672.9,1.01528]
[1754325672200,1.656,3673.0,3672.9,4.89828]
[1754325672391,2.3282,3673.0,3672.9,4.89828]
[1754325672594,1.656,3673.0,3672.9,4.89828]
[1754325672794,1.0,3673.0,3672.9,4.89828]
[1754325673896,19.30327,3674.4,3674.0,0.54431]
[1754325674193,0.776,3673.8,3673.7,0.54435]
[1754325674396,3.0398,3673.8,3673.7,0.54435]
[1754325675196,3.2078,3674.4,3673.6,1.36094]
[1754325675395,3.0398,3674.0,3673.9,3.6786]
[1754325675791,3.0398,3674.0,3673.9,4.22293]
[1754325676196,3.0398,3674.0,3673.9,3.2078]
[1754325676597,0.4352,3674.2,3674.1,0.4708]
[1754325676798,1.2112,3674.2,3674.1,1.01509]
[1754325676997,1.2112,3674.2,3674.1,0.4708]
[1754325677193,3.0398,3674.2,3674.1,0.4708]
[1754325677596,1.8286,3674.1,3674.0,0.54431]
[1754325677801,3.0398,3674.1,3674.0,1.01511]
[1754325678100,6.2476,3674.4,3674.3,1.01507]
[1754325678499,5.312,3674.4,3674.3,1.01507]
[1754325678695,5.7472,3674.4,3674.3,1.01507]
[1754325678900,6.2476,3674.4,3674.3,1.01507]
[1754325680093,6.2476,3674.4,3674.3,0.4708]
[1754325680500,4.419,3674.4,3673.9,3.2078]
[1754325680699,3.0398,3674.0,3673.9,4.22293]
[1754325681206,2.3676,3674.0,3673.9,4.22293]
[1754325681405,3.0398,3674.0,3673.9,4.22293]
[1754325682003,0.7629,3674.6,3674.5,0.54424]
[1754325682206,3.0398,3674.5,3674.4,1.01505]
[1754325684809,0.98128141,3674.9,3674.8,0.5442]
[1754325685010,2.10178141,3674.9,3674.8,1.015]
[1754325685208,0.21838141,3674.9,3674.8,1.015]
[1754325685508,0.5004,3676.3,3675.9,1.1422]
[1754325685703,1.2112,3675.8,3675.7,3.2078]
[1754325685910,3.0398,3675.8,3675.6,0.54408]
[1754325686106,3.0398,3675.7,3675.6,0.54408]
[1754325686306,4.0398,3676.0,3675.9,0.54404]
[1754325686508,1.0,3676.0,3675.9,1.01484]
[1754325686708,1.0,3676.0,3675.9,1.68624]
[1754325687305,1.0,3676.0,3675.9,1.85154937]
[1754325687808,0.001,3678.0,3676.6,1.3598]
[1754325688007,0.001,3678.0,3677.1,3.2078]
[1754325688207,2.82408289,3679.0,3677.1,3.2078]
[1754325688512,2.82408289,3679.0,3675.9,39.35030937]
[1754325688513,3.39134167,3683.2,3683.1,0.54297]
[1754325688806,3.39134167,3683.2,3680.3,9.96192]
[1754325688807,1.15418784,3683.2,3682.7,3.2078]
[1754325689017,0.93073573,3682.8,3682.7,3.2078]
[1754325689203,0.93073573,3683.4,3682.7,4.18527339]
[1754325689407,0.93073573,3683.4,3682.3,2.40541043]
[1754325689408,1.3282,3684.5,3683.2,3.2078]
[1754325689608,1.3282,3684.5,3682.8,0.97747339]
[1754325689609,1.1726,3684.1,3683.8,1.88592023]
[1754325689808,0.656,3684.5,3684.0,1.88592023]
[1754325690113,39.172,3685.8,3684.2,3.2078]
[1754325690114,0.54263,3685.5,3684.2,3.2078]
[1754325690307,3.2078,3685.2,3684.5,1.88592023]
[1754325690508,2.10333573,3684.6,3684.1,0.54282]
[1754325690708,3.2078,3684.7,3684.5,1.87438088]
[1754325690908,2.71024,3689.5,3684.9,0.54271]
[1754325690909,3.2078,3685.7,3684.9,0.54271]
[1754325691108,3.2078,3685.7,3684.9,6.27026993]
[1754325691410,3.2078,3685.6,3684.9,0.97065993]
[1754325691711,3.2078,3685.6,3684.6,5.08186389]
[1754325691906,3.2078,3685.3,3684.6,1.87406389]
[1754325692107,0.656,3685.2,3685.1,1.39913297]
[1754325692413,21.627,3685.9,3684.5,3.2078]
[1754325692414,3.2078,3686.1,3685.0,3.2078]
[1754325692617,1.1726,3685.3,3684.6,0.54274]
[1754325692822,0.5004,3686.8,3685.3,1.1883]
[1754325693113,1.3282,3686.7,3686.4,0.69677025]
[1754325693315,3.2078,3686.9,3686.3,0.5107]
[1754325693617,0.656,3687.3,3686.7,3.2078]
[1754325693813,0.54228,3687.8,3686.7,3.2078]
[1754325694119,1.1726,3687.8,3687.1,3.2078]
[1754325694316,3.2078,3687.9,3687.2,0.6776]
[1754325694521,1.21526101,3688.0,3687.6,1.87271]
[1754325694722,1.21526101,3688.0,3687.9,5.0489]
[1754325694921,3.2078,3689.4,3688.2,1.1635]
[1754325694922,0.5004,3689.4,3688.2,1.1635]
[1754325695120,3.2078,3689.6,3688.8,3.2078]
[1754325695319,0.5004,3688.8,3687.7,3.2078]
[1754325695517,1.1564,3689.1,3688.5,3.2078]
[1754325695720,3.2078,3690.1,3688.9,5.0489]
[1754325695721,0.656,3690.0,3688.9,5.0489]
[1754325696122,3.2078,3690.1,3688.9,5.0489]
[1754325696327,3.2078,3690.1,3689.0,2.3832]
[1754325696525,3.2078,3690.5,3689.9,3.2078]
[1754325696722,0.656,3691.6,3690.4,0.5419]
[1754325696922,0.656,3691.6,3688.9,40.46929]
[1754325696923,0.656,3691.3,3690.9,3.2078]
[1754325697120,0.5004,3691.8,3690.9,3.2078]
[1754325697326,0.54172,3691.6,3690.9,3.2078]
[1754325697525,0.656,3691.8,3690.9,3.2078]
[1754325697722,0.656,3693.8,3692.5,0.54158]
[1754325697923,0.656,3693.4,3693.2,3.2078]
[1754325698119,1.1726,3693.4,3692.5,3.2078]
[1754325698320,0.54141,3693.8,3692.8,3.2078]
[1754325698525,0.656,3693.7,3693.6,3.2078]
[1754325698922,0.656,3693.8,3693.2,3.2078]
[1754325699122,1.0,3694.0,3693.7,3.2078]
[1754325699323,0.2122008,3694.1,3693.9,3.2078]
[1754325699523,2.36997,3694.0,3693.4,3.2078]
[1754325699729,1.1726,3693.8,3693.6,3.2078]
[1754325699933,1.8286,3693.7,3693.6,3.2078]
[1754325700132,2.0588,3693.0,3692.9,3.2078]
[1754325700433,0.54174,3691.5,3691.1,3.2078]
[1754325700730,2.5989,3691.0,3690.9,0.97535865]
[1754325700929,0.9377,3690.2,3689.9,3.2078]
[1754325701137,0.9377,3690.2,3689.4,0.7312]
[1754325701138,1.8683,3689.5,3689.4,3.2078]
[1754325701531,0.9306,3689.5,3689.4,3.2078]
[1754325701834,0.7306,3690.0,3689.4,3.2078]
[1754325702131,0.7306,3690.0,3688.9,0.92914055]
[1754325702132,0.54205,3689.4,3689.1,0.69677025]
[1754325702324,2.5989,3689.1,3689.0,0.69677025]
[1754325702525,0.54225,3688.0,3687.9,0.97615206]
[1754325702829,4.48065,3688.0,3687.9,0.04125206]
[1754325703036,2.5989,3687.8,3687.1,3.2078]
[1754325703330,0.5423,3687.7,3687.1,3.2078]
[1754325703636,3.7501,3687.7,3687.3,1.87406389]
[1754325703834,3.1412,3687.7,3687.6,1.87406389]
[1754325704129,2.5989,3687.7,3687.5,2.64086847]
[1754325704330,2.5989,3688.0,3687.6,1.27351]
[1754325704532,0.54216,3688.6,3687.9,3.2078]
[1754325704731,2.5989,3688.7,3687.9,4.1625]
[1754325704925,3.2078,3689.0,3688.3,3.2078]
[1754325705128,0.54225,3688.0,3687.2,3.2078]
[1754325705330,0.54227,3687.9,3687.2,3.2078]
[1754325705528,3.2078,3688.2,3687.2,3.2078]
[1754325705529,0.5423,3687.7,3687.2,3.2078]
[1754325705738,2.5989,3687.8,3687.2,3.2078]
[1754325705927,2.5989,3687.5,3687.2,3.2078]
[1754325706131,3.2078,3687.8,3686.8,3.2078]
[1754325706339,2.5989,3687.3,3686.8,3.2078]
[1754325706632,2.5989,3687.6,3686.8,3.2078]
[1754325706838,0.54232,3687.6,3686.8,3.2078]
[1754325707036,3.1412,3687.7,3686.8,3.2078]
[1754325707337,2.5989,3688.1,3687.2,3.2078]
[1754325707533,1.8683,3688.7,3687.7,3.2078]
[1754325707746,5.8067,3688.9,3688.1,3.2078]
[1754325707931,3.14103,3688.8,3688.1,3.2078]
[1754325708132,2.5989,3688.8,3688.3,0.54221]
[1754325708638,1.6683,3690.6,3689.2,0.7312]
[1754325708934,1.6683,3690.6,3689.6,2.5649]
[1754325708935,3.7497,3690.4,3689.6,2.5649]
[1754325709132,3.2078,3690.0,3689.4,3.2078]
[1754325709334,2.5989,3690.1,3689.4,3.74984]
[1754325709537,2.5989,3690.1,3689.4,3.2078]
[1754325709538,1.8683,3690.1,3689.4,3.2078]
[1754325709732,0.9377,3690.6,3689.8,3.2078]
[1754325710038,3.2078,3690.7,3690.1,0.54193]
[1754325710338,2.5989,3690.9,3690.7,0.54185]
[1754325710538,1.0,3691.0,3690.9,0.54182]
[1754325710838,1.0,3691.0,3690.9,1.27302]
[1754325711037,1.0,3691.0,3690.9,2.5649]
[1754325711429,1.0,3691.0,3690.9,0.54182]
[1754325711740,1.0,3691.0,3690.9,3.10672]
[1754325712235,0.7306,3692.6,3691.1,1.9508]
[1754325712438,3.2078,3693.0,3692.2,3.2078]
[1754325712439,2.5989,3692.5,3692.2,3.2078]
[1754325712633,2.5989,3692.5,3690.6,1.35465]
[1754325712634,0.9377,3692.3,3691.7,3.2078]
[1754325712839,0.54165,3692.1,3691.6,3.2078]
[1754325713035,0.54172,3691.7,3691.2,4.04108601]
[1754325713242,2.5989,3692.0,3691.3,1.37505601]
[1754325713439,2.5989,3692.0,3691.4,0.83328601]
[1754325713743,2.5989,3691.6,3691.5,0.83328601]
[1754325713935,2.5989,3691.6,3690.6,3.2078]
[1754325713936,4.869,3691.6,3690.6,3.2078]
[1754325714238,0.54175,3691.4,3690.6,1.2078]
[1754325714431,3.2078,3691.6,3690.6,1.2078]
[1754325714632,3.2078,3691.2,3690.6,1.2078]
[1754325714839,2.5989,3691.8,3691.2,0.54177]
[1754325715035,1.6683,3691.8,3691.7,0.54171]
[1754325715340,2.5989,3692.9,3692.8,0.54155]
[1754325715534,2.5989,3692.9,3692.6,0.54157]
[1754325715834,0.7306,3692.8,3692.5,0.54159]
[1754325716039,2.5989,3692.7,3692.5,0.54159]
[1754325716243,2.5989,3692.7,3692.6,1.37578412]
[1754325716441,2.5989,3692.7,3692.6,3.2078]
[1754325716839,1.6612,3692.8,3692.6,1.38099603]
[1754325717034,4.8761,3693.1,3692.8,0.54154]
[1754325717239,0.9377,3692.8,3692.7,0.54156]
[1754325717437,0.54153,3692.9,3692.4,2.41566389]
[1754325717638,1.8683,3692.6,3692.4,1.87406389]
[1754325717838,2.5989,3692.6,3692.4,2.41566389]
[1754325718144,2.5989,3692.6,3692.4,0.5416]
[1754325718341,0.7306,3693.1,3692.5,0.879]
[1754325718649,0.7306,3693.9,3693.0,3.2078]
[1754325718842,3.9384,3693.9,3693.8,1.3937589]
[1754325719043,0.7306,3693.8,3693.7,1.3937589]
[1754325719242,0.54147,3693.3,3693.2,2.20484206]
[1754325719539,0.7306,3693.2,3693.1,2.20484206]
[1754325719939,0.7306,3693.2,3692.6,3.2078]
[1754325719940,0.5415,3693.2,3692.9,1.85832776]
[1754325720142,0.54152,3693.0,3692.8,2.20484206]
[1754325720439,4.2078,3694.0,3693.0,0.7312]
[1754325720634,3.2078,3693.2,3693.0,0.7312]
[1754325720840,4.1384,3693.2,3692.1,0.7312]
[1754325721042,3.46051606,3693.9,3693.6,0.54143]
[1754325721341,3.46051606,3693.9,3692.2,2.70815]
[1754325721342,0.54123,3695.0,3694.7,0.879]
[1754325721536,1.47171,3695.8,3694.7,0.879]
[1754325721739,0.5411,3695.9,3695.3,4.0868]
[1754325721934,1.35255,3696.5,3695.1,1.6859]
[1754325721935,3.2078,3696.0,3695.1,1.6859]
[1754325722141,3.2078,3696.4,3695.6,3.2078]
[1754325722338,0.54111,3695.8,3695.6,0.879]
[1754325722543,0.54121,3695.2,3694.7,3.74906]
[1754325722842,5.8067,3694.9,3694.0,3.74916]
[1754325723043,0.9306,3695.4,3695.0,0.54121]
[1754325723246,3.74896,3695.5,3695.2,4.0868]
[1754325723247,0.54116,3695.5,3695.2,4.0868]
[1754325723547,0.54116,3695.5,3693.7,2.40541043]
[1754325723548,2.20949,3695.3,3694.6,0.54128]
[1754325723841,0.54122,3695.1,3694.8,0.879]
[1754325724038,0.5413,3694.5,3694.4,1.6859]
[1754325724242,0.7306,3694.2,3694.0,3.2078]
[1754325724442,0.9377,3695.1,3694.4,0.5413]
[1754325724641,1.6683,3696.4,3695.1,0.879]
[1754325724843,5.1455,3697.0,3695.8,0.9547]
[1754325725043,1.0,3697.0,3696.7,0.9547]
[1754325725243,1.0,3697.0,3696.9,2.5649]
[1754325725446,0.54101,3696.5,3696.3,1.6859]
[1754325725646,3.2078,3696.9,3696.5,0.541]
[1754325725944,1.35192,3698.2,3696.1,2.5649]
[1754325725945,3.2078,3697.9,3696.9,0.879]
[1754325726145,0.54081,3697.8,3697.7,1.6859]
[1754325726346,2.20911,3697.8,3697.7,0.75621506]
[1754325726556,0.54081,3697.8,3697.7,0.75621506]
[1754325726847,3.74861,3697.9,3697.7,2.44211506]
[1754325727041,3.2078,3698.3,3697.9,0.879]
[1754325727237,0.54074,3698.4,3698.2,4.0868]
[1754325727437,0.54074,3698.4,3698.3,0.75621506]
[1754325727644,3.13964,3698.4,3698.3,0.75621506]
[1754325727844,3.13964,3698.4,3698.3,5.06e-06]
[1754325727845,1.47134,3698.4,3698.3,5.06e-06]
[1754325728046,0.00502741,3699.0,3698.3,5.06e-06]
[1754325728247,0.00502741,3699.0,3696.8,1.3524]
[1754325728248,0.9306,3698.9,3698.2,2.5649]
[1754325728449,3.21282741,3699.0,3698.3,3.2078]
[1754325728649,0.9306,3698.3,3697.8,3.2078]
[1754325728948,1.8683,3698.9,3698.3,0.54073]
[1754325729251,1.8683,3698.9,3698.2,3.2078]
[1754325729252,1.35168,3698.8,3698.2,3.2078]
[1754325729452,0.54071,3698.5,3697.7,4.8937]
[1754325729748,2.5989,3698.6,3697.7,4.8937]
[1754325729945,2.5989,3698.6,3697.8,0.54081]
[1754325730249,0.54077,3698.2,3697.8,3.2078]
[1754325730545,0.8689,3698.1,3697.8,3.2078]
[1754325730749,0.7701,3698.5,3697.8,5.0235]
[1754325731046,0.54075,3698.3,3697.8,5.0235]
[1754325731253,0.54075,3698.3,3697.9,1.8157]
[1754325731753,0.54077,3698.1,3697.9,1.8157]
[1754325731945,3.2185,3697.9,3697.8,3.2078]
[1754325732340,4.55959,3698.6,3697.8,3.2078]
[1754325732341,1.0387,3698.2,3697.8,3.2078]
[1754325732550,1.8088,3697.9,3697.5,0.92326208]
[1754325732746,2.6777,3697.6,3697.5,0.92326208]
[1754325733050,0.8689,3697.6,3697.4,3.2078]
[1754325733251,1.0387,3698.7,3697.6,1.8157]
[1754325733451,3.2078,3699.1,3698.3,0.54074]
[1754325733652,1.35168,3698.8,3697.8,3.2078]
[1754325733846,1.8088,3697.9,3697.8,3.2078]
[1754325734046,0.8689,3698.2,3698.0,0.54078]
[1754325734248,0.54074,3698.3,3698.0,1.8157]
[1754325734447,0.7701,3698.5,3697.9,1.8157]
[1754325734648,0.7701,3698.5,3698.2,0.54076]
[1754325734953,0.54081,3697.8,3697.5,0.54086]
[1754325735147,2.6777,3697.7,3697.4,3.2078]
[1754325735350,3.21853,3697.7,3697.4,4.13106208]
[1754325735546,0.54097,3696.7,3696.6,3.2078]
[1754325735752,3.21872,3696.4,3696.3,0.34186039]
[1754325735947,3.21872,3696.4,3696.2,3.2078]
[1754325735948,2.34982,3696.4,3696.2,3.2078]
[1754325736156,0.8689,3697.0,3696.2,3.2078]
[1754325736346,0.54098,3696.7,3696.4,1.34401]
[1754325736550,0.54098,3696.7,3696.2,3.2078]
[1754325736750,1.8088,3696.7,3696.6,3.2078]
[1754325737049,4.0767,3697.3,3696.2,3.2078]
[1754325737453,0.54099,3696.6,3696.2,3.74884]
[1754325737654,0.54099,3696.6,3696.4,0.54101]
[1754325737655,1.8088,3696.6,3696.4,0.54101]
[1754325737852,0.54096,3696.8,3696.5,0.541]
[1754325738161,2.34983,3696.3,3696.2,3.2078]
[1754325738456,1.8088,3696.3,3695.8,4.35401676]
[1754325738655,2.34983,3696.3,3696.2,3.2078]
[1754325739057,1.8088,3696.3,3696.2,3.2078]
[1754325739356,0.54097,3696.8,3696.2,3.2078]
[1754325739657,0.7701,3696.7,3696.6,3.2078]
[1754325739856,2.6777,3696.7,3696.6,0.74084088]
[1754325740046,0.54097,3696.8,3696.6,1.63154088]
[1754325740252,0.54095,3696.9,3696.7,0.74084088]
[1754325740547,2.34975,3696.9,3696.8,0.74084088]
[1754325741154,1.9076,3697.7,3697.1,0.8907]
[1754325741354,0.54086,3697.5,3697.3,3.2078]
[1754325741558,1.8088,3697.0,3696.9,3.2078]
[1754325741756,3.2078,3697.8,3696.9,3.95082955]
[1754325742058,1.40982,3697.1,3697.0,0.74302955]
[1754325742258,1.8088,3696.5,3696.4,1.39452319]
[1754325742450,0.7701,3697.9,3696.6,0.8907]
[1754325742652,43.9901,3698.0,3697.2,4.0985]
[1754325742860,0.54088,3697.4,3697.3,0.8907]
[1754325743361,1.57958,3697.4,3697.3,0.8907]
[1754325743856,0.7701,3697.4,3697.3,1.23563103]
[1754325744057,0.54086,3697.5,3697.4,0.8907]
[1754325744264,2.34966,3697.5,3697.4,0.34583825]
[1754325744559,2.34966,3697.5,3697.4,1.23653825]
[1754325745461,1.8088,3697.5,3697.4,0.34583825]
[1754325745655,1.8088,3697.5,3697.4,2.63912748]
[1754325746256,1.8088,3697.5,3697.4,1.23653825]
[1754325746653,1.31095,3697.6,3697.4,1.23653825]
[1754325746961,2.34965,3697.6,3697.5,1.74998215]
[1754325747264,2.34973,3697.0,3696.9,1.84969315]
[1754325747562,0.54096,3696.8,3696.7,3.2078]
[1754325747758,0.54096,3696.8,3696.7,0.8907]
[1754325747964,2.34976,3696.8,3696.7,0.8907]
[1754325748361,0.54099,3696.6,3696.5,1.84969315]
[1754325748558,0.54102,3696.4,3696.3,5.05749315]
[1754325748759,1.8088,3697.0,3696.3,7.76389315]
[1754325749054,0.541,3696.6,3696.4,0.8907]
[1754325749262,0.54091,3697.2,3697.0,0.54093]
[1754325749458,0.54095,3696.9,3696.8,4.0985]
[1754325749659,0.541,3696.5,3696.4,3.2078]
[1754325749962,2.3498,3696.5,3696.4,0.8907]
[1754325750364,2.3498,3696.5,3696.3,1.88180684]
[1754325750365,1.0387,3696.4,3696.3,1.88180684]
[1754325750566,0.54105,3696.2,3696.0,3.2078]
[1754325750756,2.34992,3695.7,3695.6,1.88180684]
[1754325751061,2.34995,3695.5,3695.4,3.2078]
[1754325751264,23.037,3696.3,3695.4,3.2078]
[1754325751265,43.5083,3696.6,3695.5,2.7064]
[1754325751560,0.54102,3696.4,3696.3,3.2078]
[1754325751761,0.54102,3696.4,3696.3,5.9142]
[1754325752065,0.54106,3696.1,3695.9,1.88180684]
[1754325752267,1.8088,3696.0,3695.9,1.88180684]
[1754325752465,0.54109,3695.9,3695.8,1.88180684]
[1754325752765,0.54109,3695.9,3695.8,1.8157]
[1754325753060,0.54109,3695.9,3695.8,5.9142]
[1754325753266,1.0387,3696.4,3695.8,5.9142]
[1754325753470,38.948,3696.6,3696.3,0.803]
[1754325753660,23.54501,3696.5,3696.4,2.30491374]
[1754325753864,23.54501,3696.5,3696.4,2.7064]
[1754325753865,0.54101,3696.5,3696.4,2.7064]
[1754325754066,23.54501,3696.5,3696.4,2.7064]
[1754325754267,25.35381,3696.5,3696.4,1.58135292]
[1754325754770,25.80031,3696.5,3696.4,0.69065292]
[1754325755365,25.80031,3696.5,3695.9,0.8907]
[1754325755366,1.8088,3695.8,3695.7,2.77658932]
[1754325755565,1.8088,3695.8,3695.7,0.8907]
[1754325755566,22.96,3695.8,3695.7,0.8907]
[1754325755768,23.9987,3695.8,3695.7,0.8907]
[1754325755963,22.96,3695.8,3695.7,0.8907]
[1754325756270,24.7688,3695.8,3695.7,0.8907]
[1754325756570,2.70464,3697.1,3695.5,1.8157]
[1754325756761,0.54102,3696.4,3696.2,1.34405]
[1754325757072,1.8088,3696.8,3696.4,1.8157]
[1754325757469,0.12174282,3696.7,3696.6,2.21728741]
[1754325757670,0.12174282,3696.7,3696.0,3.2078]
[1754325757671,0.54099,3696.6,3696.4,1.41428741]
[1754325757968,2.34982,3696.4,3696.3,1.41452504]
[1754325758172,1.8088,3696.3,3696.2,1.41452504]
[1754325758563,24.7338,3696.3,3696.1,1.41452504]
[1754325758767,24.7338,3696.3,3695.1,1.0127]
[1754325758768,1.0387,3695.5,3695.1,3.2078]